fUSD/lending_fUSD_20250510
["ID","MTS","AMOUNT","RATE_DAILY","PERIOD"]
[360555463,1746886830004,-547238.77598667,0.00043649,90]
[360555464,1746886830029,-7612.82674024,0.00043649,120]
[360555465,1746886830057,-3213.97817191,0.00043649,120]
[360555466,1746886830082,-485.12189437,0.00043649,30]
[360555467,1746886830107,-586.0453525,0.00043649,120]
[360555468,1746886830133,-1075.0,0.00043649,30]
[360555469,1746886830158,-1075.0,0.00043649,30]
[360555470,1746886830183,-1075.0,0.00043649,30]
[360555471,1746886830209,-1075.0,0.00043649,30]
[360555472,1746886830238,-1075.0,0.00043649,30]
[360555473,1746886830264,-342.5383065,0.00043649,30]
[360555474,1746886830290,-1075.0,0.00043649,30]
[360555475,1746886830322,-1075.0,0.00043649,30]
[360555476,1746886830348,-558.62222931,0.00043649,30]
[360555477,1746886830374,-1075.0,0.00043649,30]
[360555478,1746886830402,-1075.0,0.00043649,30]
[360555479,1746886830428,-173.83946419,0.00043649,30]
[360555480,1746886830454,-1075.0,0.00043649,30]
[360555481,1746886830480,-306.54041242,0.00043649,60]
[360555482,1746886830507,-1000.0,0.00043649,32]
[360555483,1746886830534,-2000.0,0.00043649,120]
[360555484,1746886830562,-2000.0,0.00043649,120]
[360555485,1746886830588,-2000.0,0.00043649,120]
[360555486,1746886830616,-1531.0,0.00043649,120]
[360555487,1746886830643,-162.0,0.00043649,120]
[360555488,1746886830672,-3000.0,0.00043649,30]
[360555489,1746886830699,-1606.0,0.00043649,30]
[360555490,1746886830725,-11435.04237345,0.00043649,60]
[360555491,1746886830751,-10011.08625647,0.00043649,30]
[360555492,1746886830777,-350.0,0.00043649,120]
[360555493,1746886830804,-1355.0,0.00043649,120]
[360555494,1746886837190,500.0,0.00016438,2]
[360555495,1746886837522,500.0,0.00016438,2]
[360555496,1746886837861,500.0,0.00016438,2]
[360555497,1746886838169,500.0,0.00016438,2]
[360555498,1746886838507,371.5218975,0.00016438,2]
[360555499,1746886849541,-50002.82290875,0.000301,30]
[360555500,1746886849571,-1456.0,0.0003013,30]
[360555501,1746886849606,-500.0,0.00030137,30]
[360555502,1746886849635,-3229.95789568,0.00030137,120]
[360555503,1746886849675,-150.0,0.00030326,120]
[360555504,1746886849702,-1646.78893529,0.00030473,120]
[360555505,1746886849731,-548.0,0.00030613,30]
[360555506,1746886849759,-250.0,0.000308,30]
[360555507,1746886849786,-1000.0,0.00031,120]
[360555508,1746886849813,-496.5184227,0.00031,120]
[360555509,1746886849839,-2044.45544974,0.00031,30]
[360555510,1746886849866,-1800.0,0.00031,32]
[360555511,1746886849892,-5396.15354636,0.00031,120]
[360555512,1746886849919,-2500.0,0.00031,30]
[360555513,1746886849947,-1000.0,0.00031146,30]
[360555514,1746886849974,-150.0,0.00031195,120]
[360555515,1746886850002,-1000.0,0.000314,120]
[360555516,1746886850028,-1000.0,0.00031501,30]
[360555517,1746886850055,-150.0,0.00031523,120]
[360555518,1746886850084,-312.06412231,0.0003167,40]
[360555519,1746886850111,-1000.0,0.00031944,30]
[360555520,1746886850140,-1000.0,0.00031944,30]
[360555521,1746886850172,-1000.0,0.00031944,30]
[360555522,1746886850203,-1333.0,0.00031945,120]
[360555523,1746886850234,-153.51158012,0.00032,30]
[360555524,1746886850264,-1000.0,0.00032,120]
[360555525,1746886850293,-312.19813486,0.00032,120]
[360555526,1746886850327,-1800.0,0.00032,33]
[360555527,1746886850356,-3002.8982037,0.00032,30]
[360555528,1746886850387,-150.0,0.00032349,120]
[360555529,1746886850416,-282.41,0.0003287,120]
[360555530,1746886850453,-624.41,0.00032876,120]
[360555531,1746886850481,-624.41,0.00032876,120]
[360555532,1746886850511,-624.41,0.00032876,120]
[360555533,1746886850539,-624.41,0.00032876,120]
[360555534,1746886850570,-624.41,0.00032876,120]
[360555535,1746886850598,-624.41,0.00032876,120]
[360555536,1746886850625,-624.41,0.00032876,120]
[360555537,1746886850653,-624.41,0.00032876,120]
[360555538,1746886850680,-624.41,0.00032876,120]
[360555539,1746886850707,-624.41,0.00032876,120]
[360555540,1746886850733,-624.41,0.00032876,120]
[360555541,1746886850760,-624.41,0.00032876,120]
[360555542,1746886850787,-624.41,0.00032876,120]
[360555543,1746886850814,-624.41,0.00032876,120]
[360555544,1746886850840,-624.41,0.00032876,120]
[360555545,1746886850866,-624.41,0.00032876,120]
[360555546,1746886850892,-624.41,0.00032876,120]
[360555547,1746886850918,-624.41,0.00032876,120]
[360555548,1746886850944,-624.41,0.00032876,120]
[360555549,1746886850970,-624.41,0.00032876,120]
[360555550,1746886850999,-624.41,0.00032876,120]
[360555551,1746886851024,-624.41,0.00032876,120]
[360555552,1746886851049,-624.41,0.00032876,120]
[360555553,1746886851076,-624.5628759,0.00032876,120]
[360555554,1746886851103,-204.488,0.00032877,30]
[360555555,1746886851128,-204.0,0.00032877,30]
[360555556,1746886851153,-4453.55262024,0.000329,30]
[360555557,1746886851179,-397.80101665,0.000329,30]
[360555558,1746886851207,-433.73904098,0.00033,120]
[360555559,1746886851233,-1800.0,0.00033,34]
[360555560,1746886851260,-250.5261735,0.00033,120]
[360555561,1746886851294,-2000.0,0.00033288,60]
[360555562,1746886851321,-900.0,0.00033288,60]
[360555563,1746886851350,-627.0,0.00033674,30]
[360555564,1746886851377,-150.0,0.00033766,120]
[360555565,1746886851404,-1800.0,0.00034,35]
[360555566,1746886851432,-608.0,0.00034,120]
[360555567,1746886851461,-3449.0,0.000341,120]
[360555568,1746886851490,-150.0,0.0003412,120]
[360555569,1746886851517,-4528.86,0.0003427,30]
[360555570,1746886851543,-2000.0,0.00034384,60]
[360555571,1746886851570,-900.0,0.00034384,60]
[360555572,1746886851597,-499.999999,0.000349,120]
[360555573,1746886851624,-150.0,0.00034958,120]
[360555574,1746886851651,-1000.0,0.00034987,31]
[360555575,1746886851679,-477.94976141,0.00035,30]
[360555576,1746886851708,-1800.0,0.00035,36]
[360555577,1746886851735,-150.0,0.00035,30]
[360555578,1746886851762,-208.33198619,0.00035,120]
[360555579,1746886851790,-150.0,0.00035226,120]
[360555580,1746886851819,-2000.0,0.0003548,60]
[360555581,1746886851847,-900.0,0.0003548,60]
[360555582,1746886851875,-150.0,0.0003569,120]
[360555583,1746886851902,-150.0,0.00035908,120]
[360555584,1746886851928,-150.12195821,0.00035959,30]
[360555585,1746886851956,-1800.0,0.00036,37]
[360555586,1746886851984,-2073.5847445,0.00036,120]
[360555587,1746886852010,-1934.57249112,0.00036,60]
[360555588,1746886852038,-1000.0,0.00036,120]
[360555589,1746886852212,-150.0,0.00036235,120]
[360555590,1746886852241,-150.0,0.0003624,120]
[360555591,1746886852268,-150.0,0.00036304,120]
[360555592,1746886852295,-150.0,0.00036438,120]
[360555593,1746886852323,-2000.0,0.00036576,60]
[360555594,1746886852354,-900.0,0.00036576,60]
[360555595,1746886852383,-150.0,0.00036878,120]
[360555596,1746886852412,-1800.0,0.00037,38]
[360555597,1746886852440,-150.0,0.00037156,120]
[360555598,1746886852468,-937.02785296,0.000372,120]
[360555599,1746886852495,-937.02785296,0.000372,120]
[360555600,1746886852524,-937.02785296,0.000372,120]
[360555601,1746886852552,-937.02785296,0.000372,120]
[360555602,1746886852580,-937.02785296,0.000372,120]
[360555603,1746886852607,-1000.00000002,0.0003729,30]
[360555604,1746886852634,-150.0,0.00037308,120]
[360555605,1746886852662,-150.0,0.00037375,120]
[360555606,1746886852689,-150.0,0.00037564,120]
[360555607,1746886852717,-2000.0,0.00037672,60]
[360555608,1746886852744,-931.57983492,0.00037672,60]
[360555609,1746886852772,-515.62,0.00037808,60]
[360555610,1746886852799,-515.63,0.00037839,80]
[360555611,1746886852827,-515.62,0.00037869,100]
[360555612,1746886852854,-515.63,0.000379,120]
[360555613,1746886852882,-500.70121657,0.00038,30]
[360555614,1746886852910,-1800.0,0.00038,39]
[360555615,1746886852938,-1600.0,0.00038,120]
[360555616,1746886852964,-500.0,0.00038,120]
[360555617,1746886852992,-2000.0,0.00038,120]
[360555618,1746886853020,-928.8343,0.00038,120]
[360555619,1746886853047,-257.0,0.00038,120]
[360555620,1746886853073,-3000.0,0.00038,120]
[360555621,1746886853104,-150.0,0.00038116,120]
[360555622,1746886853132,-636.19778577,0.0003836,120]
[360555623,1746886853160,-636.19778577,0.0003836,120]
[360555624,1746886853188,-636.19778577,0.0003836,120]
[360555625,1746886853217,-636.19778577,0.0003836,120]
[360555626,1746886853246,-636.19778577,0.0003836,120]
[360555627,1746886853273,-636.19778577,0.0003836,120]
[360555628,1746886853300,-636.19778577,0.0003836,120]
[360555629,1746886853333,-636.19778577,0.0003836,120]
[360555630,1746886853360,-636.19778577,0.0003836,120]
[360555631,1746886853388,-636.19778577,0.0003836,120]
[360555632,1746886853417,-636.19778577,0.0003836,120]
[360555633,1746886853446,-636.19778577,0.0003836,120]
[360555634,1746886853473,-636.19778577,0.0003836,120]
[360555635,1746886853502,-636.19778577,0.0003836,120]
[360555636,1746886853529,-636.19778577,0.0003836,120]
[360555637,1746886853557,-636.19778577,0.0003836,120]
[360555638,1746886853585,-636.19778577,0.0003836,120]
[360555639,1746886853612,-636.19778577,0.0003836,120]
[360555640,1746886853638,-636.19778577,0.0003836,120]
[360555641,1746886853665,-636.19,0.0003836,120]
[360555642,1746886853692,-1484.46150014,0.0003836,120]
[360555643,1746886853718,-1484.46150014,0.0003836,120]
[360555644,1746886853744,-1484.46150014,0.0003836,120]
[360555645,1746886853772,-1484.46150014,0.0003836,120]
[360555646,1746886853798,-1484.46150014,0.0003836,120]
[360555647,1746886853826,-1484.46150014,0.0003836,120]
[360555648,1746886853852,-1484.46150014,0.0003836,120]
[360555649,1746886853879,-1484.46150014,0.0003836,120]
[360555650,1746886853905,-1484.46150014,0.0003836,120]
[360555651,1746886853931,-1484.46150014,0.0003836,120]
[360555652,1746886853957,-1484.46150014,0.0003836,120]
[360555653,1746886853984,-1484.46150014,0.0003836,120]
[360555654,1746886854011,-1484.46150014,0.0003836,120]
[360555655,1746886854038,-1484.46150014,0.0003836,120]
[360555656,1746886854066,-1484.46150014,0.0003836,120]
[360555657,1746886854093,-1484.46150014,0.0003836,120]
[360555658,1746886854120,-1484.46150014,0.0003836,120]
[360555659,1746886854147,-1484.46150014,0.0003836,120]
[360555660,1746886854174,-1484.46150014,0.0003836,120]
[360555661,1746886854200,-1484.46,0.0003836,120]
[360555662,1746886854226,-299.76475984,0.0003836,120]
[360555663,1746886854251,-299.76475984,0.0003836,120]
[360555664,1746886854277,-299.76475984,0.0003836,120]
[360555665,1746886854305,-299.76475984,0.0003836,120]
[360555666,1746886854335,-299.76475984,0.0003836,120]
[360555667,1746886854360,-299.76475984,0.0003836,120]
[360555668,1746886854387,-299.76475984,0.0003836,120]
[360555669,1746886854412,-299.76475984,0.0003836,120]
[360555670,1746886854438,-299.76475984,0.0003836,120]
[360555671,1746886854465,-299.76475984,0.0003836,120]
[360555672,1746886854492,-299.76475984,0.0003836,120]
[360555673,1746886854518,-299.76475984,0.0003836,120]
[360555674,1746886854545,-299.76475984,0.0003836,120]
[360555675,1746886854572,-299.76475984,0.0003836,120]
[360555676,1746886854598,-299.76475984,0.0003836,120]
[360555677,1746886854625,-299.76475984,0.0003836,120]
[360555678,1746886854651,-299.76475984,0.0003836,120]
[360555679,1746886854677,-299.76475984,0.0003836,120]
[360555680,1746886854703,-299.76475984,0.0003836,120]
[360555681,1746886854728,-299.76,0.0003836,120]
[360555682,1746886854753,-699.4511063,0.0003836,120]
[360555683,1746886854926,-699.4511063,0.0003836,120]
[360555684,1746886854954,-699.4511063,0.0003836,120]
[360555685,1746886854982,-699.4511063,0.0003836,120]
[360555686,1746886855008,-699.4511063,0.0003836,120]
[360555687,1746886855036,-699.4511063,0.0003836,120]
[360555688,1746886855062,-699.4511063,0.0003836,120]
[360555689,1746886855090,-699.4511063,0.0003836,120]
[360555690,1746886855116,-699.4511063,0.0003836,120]
[360555691,1746886855142,-699.4511063,0.0003836,120]
[360555692,1746886855169,-699.4511063,0.0003836,120]
[360555693,1746886855197,-699.4511063,0.0003836,120]
[360555694,1746886855224,-699.4511063,0.0003836,120]
[360555695,1746886855251,-699.4511063,0.0003836,120]
[360555696,1746886855277,-699.4511063,0.0003836,120]
[360555697,1746886855303,-699.4511063,0.0003836,120]
[360555698,1746886855332,-699.4511063,0.0003836,120]
[360555699,1746886855360,-699.4511063,0.0003836,120]
[360555700,1746886855388,-699.4511063,0.0003836,120]
[360555701,1746886855416,-699.45,0.0003836,120]
[360555702,1746886855444,-295.63207515,0.0003836,120]
[360555703,1746886855470,-295.63207515,0.0003836,120]
[360555704,1746886855496,-295.63207515,0.0003836,120]
[360555705,1746886855523,-295.63207515,0.0003836,120]
[360555706,1746886855550,-295.63207515,0.0003836,120]
[360555707,1746886855579,-295.63207515,0.0003836,120]
[360555708,1746886855607,-295.63207515,0.0003836,120]
[360555709,1746886855635,-295.63207515,0.0003836,120]
[360555710,1746886855663,-295.63207515,0.0003836,120]
[360555711,1746886855690,-295.63207515,0.0003836,120]
[360555712,1746886855717,-295.63207515,0.0003836,120]
[360555713,1746886855745,-295.63207515,0.0003836,120]
[360555714,1746886855772,-295.63207515,0.0003836,120]
[360555715,1746886855799,-295.63207515,0.0003836,120]
[360555716,1746886855827,-295.63207515,0.0003836,120]
[360555717,1746886855855,-295.63207515,0.0003836,120]
[360555718,1746886855883,-295.63207515,0.0003836,120]
[360555719,1746886855911,-295.63207515,0.0003836,120]
[360555720,1746886855937,-295.63207515,0.0003836,120]
[360555721,1746886855964,-295.63,0.0003836,120]
[360555722,1746886855991,-689.80817534,0.0003836,120]
[360555723,1746886856018,-689.80817534,0.0003836,120]
[360555724,1746886856049,-689.80817534,0.0003836,120]
[360555725,1746886856076,-689.80817534,0.0003836,120]
[360555726,1746886856103,-689.80817534,0.0003836,120]
[360555727,1746886856131,-689.80817534,0.0003836,120]
[360555728,1746886856159,-689.80817534,0.0003836,120]
[360555729,1746886856187,-689.80817534,0.0003836,120]
[360555730,1746886856216,-689.80817534,0.0003836,120]
[360555731,1746886856247,-689.80817534,0.0003836,120]
[360555732,1746886856277,-689.80817534,0.0003836,120]
[360555733,1746886856307,-689.80817534,0.0003836,120]
[360555734,1746886856336,-689.80817534,0.0003836,120]
[360555735,1746886856365,-689.80817534,0.0003836,120]
[360555736,1746886856394,-689.80817534,0.0003836,120]
[360555737,1746886856423,-689.80817534,0.0003836,120]
[360555738,1746886856451,-689.80817534,0.0003836,120]
[360555739,1746886856479,-689.80817534,0.0003836,120]
[360555740,1746886856507,-689.80817534,0.0003836,120]
[360555741,1746886856535,-689.8,0.0003836,120]
[360555742,1746886856562,-1637.50995183,0.000384,33]
[360555743,1746886856592,-365.88776394,0.000384,33]
[360555744,1746886856620,-150.0,0.000385,120]
[360555745,1746886856647,-150.0,0.000385,120]
[360555746,1746886856675,-150.0,0.00038504,120]
[360555747,1746886856703,-150.0,0.00038728,120]
[360555748,1746886856731,-1439.46271899,0.00038768,60]
[360555749,1746886856758,-818.14,0.000389,120]
[360555750,1746886856783,-2109.4327741,0.000389,120]
[360555751,1746886856811,-150.0,0.0003891,120]
[360555752,1746886856837,-150.0,0.00038938,120]
[360555753,1746886856864,-150.0,0.00038962,120]
[360555754,1746886856891,-240.46294434,0.00039,120]
[360555755,1746886856917,-343.59375865,0.00039,120]
[360555756,1746886856943,-100000.0,0.00039,120]
[360555757,1746886856970,-900.0,0.00039,40]
[360555758,1746886856997,-7813.75,0.00039,30]
[360555759,1746886857026,-150.0,0.00039053,120]
[360555760,1746886857052,-265.56089354,0.00039178,30]
[360555761,1746886857078,-150.0,0.000395,120]
[360555762,1746886857105,-150.0,0.000395,120]
[360555763,1746886857134,-150.0,0.00039601,120]
[360555764,1746886857161,-150.0,0.00039656,120]
[360555765,1746886857187,-1000.00000001,0.00039876,31]
[360555766,1746886857216,-150.0,0.00039977,120]
[360555767,1746886857243,-438.05874788,0.00039986,90]
[360555768,1746886857268,-9008.24229289,0.00039999,30]
[360555769,1746886857298,-50000.0,0.0004,40]
[360555770,1746886857331,-1319.0,0.0004,120]
[360555771,1746886857359,-1500.0,0.0004,120]
[360555772,1746886857386,-2000.00843241,0.0004,30]
[360555773,1746886857417,-477.12749073,0.0004,30]
[360555774,1746886857446,-475.22272988,0.0004,120]
[360555775,1746886857472,-346.09483805,0.0004,30]
[360555776,1746886857500,-198.98766476,0.0004,30]
[360555777,1746886857530,-500.0,0.0004,120]
[360555778,1746886857708,-185.0,0.0004,120]
[360555779,1746886857737,-2000.0,0.0004,120]
[360555780,1746886857766,-1000.0,0.0004,30]
[360555781,1746886857793,-971.90046576,0.0004,120]
[360555782,1746886857823,-10000.0,0.0004,60]
[360555783,1746886857851,-500.0,0.0004,30]
[360555784,1746886857878,-148797.79937484,0.0004,120]
[360555785,1746886857907,-236.0,0.0004,120]
[360555786,1746886857934,-535.3,0.0004,120]
[360555787,1746886857966,-392329.29267257,0.0004,30]
[360555788,1746886857994,-9747.76917919,0.0004,30]
[360555789,1746886858023,-2504.31,0.0004,120]
[360555790,1746886858050,-900.0,0.0004,41]
[360555791,1746886858078,-160.0,0.0004,33]
[360555792,1746886858103,-385.27566438,0.0004,30]
[360555793,1746886858130,-806.63859232,0.0004,30]
[360555794,1746886858158,-224.58198264,0.0004,30]
[360555795,1746886858185,-205.7,0.0004,120]
[360555796,1746886858212,-1240.0,0.0004,60]
[360555797,1746886858241,-150.0,0.00040079,120]
[360555798,1746886858269,-150.0,0.00040342,120]
[360555799,1746886858297,-150.0,0.00040404,120]
[360555800,1746886858329,-150.0,0.000405,120]
[360555801,1746886858357,-1509.0,0.000405,120]
[360555802,1746886858386,-222.65239,0.000405,120]
[360555803,1746886858414,-888.00442584,0.00040602,30]
[360555804,1746886858442,-150.0,0.00040708,120]
[360555805,1746886858471,-265.38665928,0.000408,30]
[360555806,1746886858500,-1161.05874,0.00040888,30]
[360555807,1746886858528,-500.0,0.00040895,120]
[360555808,1746886858555,-150.0,0.00040904,120]
[360555809,1746886858589,-150.0,0.00040956,120]
[360555810,1746886858626,-500.0,0.00040995,120]
[360555811,1746886858669,-50000.0,0.00041,41]
[360555812,1746886858703,-1000.0,0.00041,120]
[360555813,1746886858733,-505.76621124,0.00041,120]
[360555814,1746886858762,-900.0,0.00041,42]
[360555815,1746886858791,-1000.0,0.00041,30]
[360555816,1746886858821,-889.0,0.00041,60]
[360555817,1746886858849,-380.4,0.00041,120]
[360555818,1746886858878,-160.0,0.00041,37]
[360555819,1746886858906,-5000.0,0.00041,120]
[360555820,1746886858933,-3026.70885946,0.00041,120]
[360555821,1746886858961,-4173.0,0.00041,117]
[360555822,1746886858990,-150.0,0.00041041,120]
[360555823,1746886859017,-1161.05874,0.00041088,30]
[360555824,1746886859044,-587.85,0.00041095,120]
[360555825,1746886859073,-587.85,0.00041095,120]
[360555826,1746886859101,-587.85,0.00041095,120]
[360555827,1746886859128,-587.85,0.00041095,120]
[360555828,1746886859156,-587.85,0.00041095,120]
[360555829,1746886859185,-587.85,0.00041095,120]
[360555830,1746886859217,-587.85,0.00041095,120]
[360555831,1746886859246,-587.85,0.00041095,120]
[360555832,1746886859275,-587.85,0.00041095,120]
[360555833,1746886859305,-587.85,0.00041095,120]
[360555834,1746886859338,-587.85,0.00041095,120]
[360555835,1746886859367,-587.85,0.00041095,120]
[360555836,1746886859399,-587.85,0.00041095,120]
[360555837,1746886859428,-587.85,0.00041095,120]
[360555838,1746886859459,-587.85,0.00041095,120]
[360555839,1746886859489,-587.85,0.00041095,120]
[360555840,1746886859520,-587.85,0.00041095,120]
[360555841,1746886859549,-587.85,0.00041095,120]
[360555842,1746886859578,-587.85,0.00041095,120]
[360555843,1746886859608,-587.85,0.00041095,120]
[360555844,1746886859638,-587.85,0.00041095,120]
[360555845,1746886859669,-587.85,0.00041095,120]
[360555846,1746886859700,-587.85,0.00041095,120]
[360555847,1746886859730,-587.96027548,0.00041095,120]
[360555848,1746886859760,-804.33061996,0.00041095,120]
[360555849,1746886859792,-3105.38,0.00041096,120]
[360555850,1746886859820,-500.0,0.00041096,30]
[360555851,1746886859849,-500.0,0.00041096,30]
[360555852,1746886859877,-500.0,0.00041096,30]
[360555853,1746886859907,-500.0,0.00041096,30]
[360555854,1746886859935,-500.0,0.00041096,30]
[360555855,1746886859964,-500.0,0.00041096,30]
[360555856,1746886859992,-500.0,0.00041096,30]
[360555857,1746886860020,-500.0,0.00041096,30]
[360555858,1746886860049,-500.0,0.00041096,30]
[360555859,1746886860080,-500.0,0.00041096,30]
[360555860,1746886860109,-500.0,0.00041096,30]
[360555861,1746886860139,-500.0,0.00041096,30]
[360555862,1746886860173,-500.0,0.00041096,30]
[360555863,1746886860207,-500.0,0.00041096,30]
[360555864,1746886860253,-500.0,0.00041096,30]
[360555865,1746886860284,-500.0,0.00041096,30]
[360555866,1746886860314,-500.0,0.00041096,30]
[360555867,1746886860345,-500.0,0.00041096,30]
[360555868,1746886860375,-500.0,0.00041096,30]
[360555869,1746886860406,-500.0,0.00041096,30]
[360555870,1746886860436,-500.0,0.00041096,30]
[360555871,1746886860465,-500.0,0.00041096,30]
[360555872,1746886860668,-500.0,0.00041096,30]
[360555873,1746886860700,-500.0,0.00041096,30]
[360555874,1746886860729,-500.0,0.00041096,30]
[360555875,1746886860765,-500.0,0.00041096,30]
[360555876,1746886860799,-500.0,0.00041096,30]
[360555877,1746886860830,-500.0,0.00041096,30]
[360555878,1746886860858,-500.0,0.00041096,30]
[360555879,1746886860888,-500.0,0.00041096,30]
[360555880,1746886860917,-500.0,0.00041096,30]
[360555881,1746886860946,-500.0,0.00041096,30]
[360555882,1746886860974,-500.0,0.00041096,30]
[360555883,1746886861003,-500.0,0.00041096,30]
[360555884,1746886861031,-500.0,0.00041096,30]
[360555885,1746886861059,-500.0,0.00041096,30]
[360555886,1746886861089,-587.0,0.00041096,30]
[360555887,1746886861117,-193.37459198,0.00041096,31]
[360555888,1746886861146,-2000.0,0.00041269,30]
[360555889,1746886861177,-1161.05874,0.00041288,30]
[360555890,1746886861204,-1161.05874,0.00041488,30]
[360555891,1746886861233,-1000.0,0.000415,120]
[360555892,1746886861262,-295.32672,0.000415,120]
[360555893,1746886861293,-150.0,0.00041542,120]
[360555894,1746886861331,-150.0,0.00041584,120]
[360555895,1746886861364,-150.0,0.00041665,120]
[360555896,1746886861395,-1161.05874,0.00041688,30]
[360555897,1746886861428,-150.0,0.0004179,120]
[360555898,1746886861458,-1161.05874,0.00041888,30]
[360555899,1746886861488,-243.67,0.00041916,120]
[360555900,1746886861518,-150.0,0.00041933,120]
[360555901,1746886861549,-364.0,0.0004197,120]
[360555902,1746886861581,-364.0,0.0004197,120]
[360555903,1746886861611,-1577.0,0.0004197,120]
[360555904,1746886861641,-1577.0,0.0004197,120]
[360555905,1746886861676,-875.0,0.0004197,120]
[360555906,1746886861708,-682.0,0.0004197,120]
[360555907,1746886861739,-682.0,0.0004197,120]
[360555908,1746886861769,-875.0,0.0004197,120]
[360555909,1746886861801,-364.0,0.0004198,120]
[360555910,1746886861830,-364.0,0.0004198,120]
[360555911,1746886861858,-364.0,0.0004198,120]
[360555912,1746886861888,-371.8,0.0004198,120]
[360555913,1746886861917,-1577.0,0.0004198,120]
[360555914,1746886861946,-1577.0,0.0004198,120]
[360555915,1746886861976,-1577.0,0.0004198,120]
[360555916,1746886862034,-1581.13,0.0004198,120]
[360555917,1746886862086,-875.0,0.0004198,120]
[360555918,1746886862139,-682.0,0.0004198,120]
[360555919,1746886862193,-875.0,0.0004198,120]
[360555920,1746886862246,-682.0,0.0004198,120]
[360555921,1746886862299,-682.0,0.0004198,120]
[360555922,1746886862350,-875.0,0.0004198,120]
[360555923,1746886862404,-685.05,0.0004198,120]
[360555924,1746886862461,-883.54,0.0004198,120]
[360555925,1746886862518,-364.0,0.0004199,120]
[360555926,1746886862575,-364.0,0.0004199,120]
[360555927,1746886862630,-364.0,0.0004199,120]
[360555928,1746886862682,-364.0,0.0004199,120]
[360555929,1746886862735,-1577.0,0.0004199,120]
[360555930,1746886862791,-1577.0,0.0004199,120]
[360555931,1746886862848,-1577.0,0.0004199,120]
[360555932,1746886862901,-1577.0,0.0004199,120]
[360555933,1746886862953,-875.0,0.0004199,120]
[360555934,1746886863004,-682.0,0.0004199,120]
[360555935,1746886863064,-875.0,0.0004199,120]
[360555936,1746886863118,-250.07,0.0004199,120]
[360555937,1746886863171,-682.0,0.0004199,120]
[360555938,1746886863226,-682.0,0.0004199,120]
[360555939,1746886863290,-875.0,0.0004199,120]
[360555940,1746886863345,-682.0,0.0004199,120]
[360555941,1746886863399,-875.0,0.0004199,120]
[360555942,1746886863453,-278.050113,0.00041999,120]
[360555943,1746886863507,-2000.0,0.00041999,120]
[360555944,1746886863562,-313.401186,0.00041999,120]
[360555945,1746886863620,-251.779315,0.00041999,120]
[360555946,1746886863682,-50000.0,0.00042,42]
[360555947,1746886863740,-1400.0,0.00042,120]
[360555948,1746886863794,-1000.0,0.00042,120]
[360555949,1746886863847,-365.52844362,0.00042,120]
[360555950,1746886863900,-472.41751829,0.00042,120]
[360555951,1746886863956,-229.41973863,0.00042,30]
[360555952,1746886864014,-900.0,0.00042,43]
[360555953,1746886864070,-2000.0,0.00042,120]
[360555954,1746886864126,-2941.0,0.00042,30]
[360555955,1746886864184,-5800.0,0.00042,120]
[360555956,1746886864238,-256.8565244,0.00042,30]
[360555957,1746886864296,-8536.49106324,0.00042,30]
[360555958,1746886864349,-1000.0,0.00042,120]
[360555959,1746886864403,-53176.96741812,0.00042,30]
[360555960,1746886864459,-260.0086966,0.00042,120]
[360555961,1746886864515,-160.0,0.00042,41]
[360555962,1746886864571,-1161.05874,0.00042088,30]